Cogmind - Beta 13 @@@ ROGUE MODE // 2024.05.06 @ 13:57:21 Player: Faunarr Result: Destroyed by D-53 Grenadier with Mini Grenade Launcher Performance ------------- Evolutions (2) 1000 Regions Visited (4) 800 Robots Destroyed (40) 200 Value Destroyed (991) 991 Prototype IDs (1) 20 Alien Tech Used (0) 0 Bonus (0) 0 TOTAL SCORE: 3011 Bonus ------- None Cogmind --------- Core Integrity 0/550 Matter 250/300 Energy 100/100 System Corruption 0% Temperature Warm (126) Movement Core (50) Location -8/Storage Parts ------- > --- POWER (1) -------- (None) > --- PROPULSION (2) --- (None) > --- UTILITY (4) ------ (None) > --- WEAPON (4) ------- (None) > --- INVENTORY (5) ---- Light Treads Light Treads Compact Wheel Peak State ------------ > --- POWER ------------ Improved Ion Engine > --- PROPULSION ------- Light Treads Compact Wheel > --- UTILITY ---------- Huge Storage Unit Seismic Detector Medium Armor Plating Medium Armor Plating > --- WEAPON ----------- Beam Rifle Spread Laser Precision Beam Rifle Precision Beam Rifle > --- INVENTORY -------- Ion Engine Ion Engine Ion Engine Light Ion Engine Light Nuclear Core Light Nuclear Core Light Nuclear Core Light Treads Light Treads Light Treads Compact Wheel Compact Wheel Heat Sink Small Storage Unit Compact Battery Improved Terrain Scanner Targeting Computer Targeting Computer Hardened Light Armor Plating Hardened Light Armor Plating Shield Generator Spread Laser Spread Laser [Rating: 25] Favorites ----------- Power Improved Ion Engine Engine Improved Ion Engine Power Core Light Nuclear Core Propulsion Light Treads Treads Light Treads Wheel Compact Wheel Utility Huge Storage Unit Device Seismic Detector Storage Huge Storage Unit Protection Medium Armor Plating Weapon Spread Laser Energy Gun Spread Laser Ballistic Gun Assault Rifle Launcher Shock Bomb Launcher Build | -11 -10 -9 -8 -8 ------- Run | Yrd Mat Mat Mat Sto Slots Evolved 4 | . . 2 2 . Power . | . . . . . Propulsion . | . . . . . Utility 2 | . . . 2 . Weapon 2 | . . 2 . . Parts Attached 37 | 6 8 6 6 11 Power 7 | 1 3 1 . 2 Engine 6 | 1 3 1 . 1 Core 1 | . . . . 1 Reactor . | . . . . . Propulsion 7 | 2 1 2 1 1 Treads 4 | 1 . 1 1 1 Leg . | . . . . . Wheel 3 | 1 1 1 . . Hover . | . . . . . Flight . | . . . . . Utility 8 | 2 1 . 2 3 Device 3 | 1 . . . 2 Storage 2 | 1 1 . . . Processor . | . . . . . Hackware . | . . . . . Protection 3 | . . . 2 1 Artifact . | . . . . . Weapon 15 | 1 3 3 3 5 Energy Gun 10 | . 1 3 3 3 Energy Cannon . | . . . . . Ballistic Gun 3 | 1 2 . . . Ballistic Cannon . | . . . . . Launcher 2 | . . . . 2 Special Weapon . | . . . . . Impact Weapon . | . . . . . Slashing Weapon . | . . . . . Piercing Weapon . | . . . . . Special Melee Weapon . | . . . . . Unidentified Prototypes 1 | . . . 1 . Parts Lost 23 | . 3 2 1 17 Power 3 | . 1 . . 2 Propulsion 4 | . . 1 1 2 Utility 4 | . . . . 4 Weapon 12 | . 2 1 . 9 Highest Loss Streak 9 | . 1 1 1 9 To Critical Strikes . | . . . . . Average Slot Usage (%) 92 | . 94 96 99 74 Engine 11 | . 13 11 9 6 Treads 11 | . 14 11 8 7 Wheel 11 | . 14 10 9 7 Device 11 | . 14 11 9 7 Storage 11 | . 14 11 9 7 Protection 5 | . . . 18 13 Energy Gun 18 | . . 32 36 23 Ballistic Gun 11 | . 22 8 . . Naked Turns 4 | . . . . 4 Heaviest Build 113 | 11 90 98 113 111 Greatest Support 20 | 16 16 20 20 20 Greatest Overweight (x) 9 | . 8 9 7 6 Average Overweight (x) 4 | . 4 6 6 3 Largest Inventory Capacity 25 | 8 25 25 25 25 Average Capacity 22 | 7 22 25 25 20 Most Carried 23 | 6 8 20 23 22 Average Carried 12 | 3 5 16 20 17 Final Capacity 25 | 8 25 25 25 5 Final Carried 22 | 6 8 20 22 3 Class Distribution -------------------- 50% | Mutant 28% | Tank 21% | Gunner Dominant Class ---------------- Mutant | -10/Materials Gunner | -9/Materials Tank | -8/Materials Tank | -8/Storage Resources | -11 -10 -9 -8 -8 ----------- Run | Yrd Mat Mat Mat Sto Matter Collected 846 | 271 289 99 40 147 Remotely . | . . . . . Salvage Created 1261 | 94 323 263 196 385 Parts 73 | 8 14 23 11 17 Haulers Intercepted 1 | . . 1 . . Recyclers Shooed 1 | . . . 1 . Parts Field Recycled . | . . . . . Retrieved Matter . | . . . . . Parts Self-Destructed . | . . . . . Prevented . | . . . . . Kills | -11 -10 -9 -8 -8 ------- Run | Yrd Mat Mat Mat Sto Combat Hostiles Destroyed 36 | . 11 7 7 11 Guns 33 | . 11 7 7 8 AOE 3 | . . . . 3 Classes Destroyed 10 | 2 3 2 1 2 Worker 1 | . . . 1 . Tunneler 2 | 2 . . . . Hauler 1 | . . 1 . . Recycler 2 | 1 . 1 . . Mechanic 1 | . . . . 1 Operator 1 | . 1 . . . Swarmer 14 | . 6 4 4 . Grunt 11 | . 5 . 2 4 Sentry 7 | . . 3 1 3 Assembled 4 | . . . . 4 Best Kill Streak 5 | 3 3 4 5 4 Combat Bots Only 4 | . 3 4 4 4 Max Kills in Single Turn 3 | 1 2 2 3 2 Gunslinging 1 | . 1 1 1 . Exploded 2 | . . . . 2 Melee . | . . . . . Uniques/NPCs Destroyed . | . . . . . Combat | -11 -10 -9 -8 -8 -------- Run | Yrd Mat Mat Mat Sto Hostile Shots Fired 232 | . 92 34 20 86 Missed 53 | . 24 7 3 19 Damage Taken 2669 | . 648 286 231 1504 Core 616 | . 48 10 17 541 Absorbed by Shields . | . . . . . Core Remaining (%) 92 | 100 80 97 . . Volleys Fired 102 | 7 54 15 9 17 Largest 4 | 1 2 4 4 4 Hottest 247 | 20 40 190 247 247 Shots Fired 209 | 7 82 38 34 48 Gun 203 | 7 82 38 34 42 Cannon . | . . . . . Launcher 6 | . . . . 6 Special . | . . . . . Kinetic 93 | 7 82 4 . . Thermal 110 | . . 34 34 42 Explosive . | . . . . . Electromagnetic 6 | . . . . 6 Robot Hit Streak 17 | 5 14 17 9 9 Robot Miss Streak 5 | 1 5 5 3 4 Penetration Max . | . . . . . Secondary Targets 5 | . 1 1 2 1 Max Gunslinging Chain 1 | . 1 1 1 1 Shots Hit Robots 144 | 6 48 28 24 38 Core Hits 140 | 3 19 35 26 57 Critical Kills . | . . . . . Critical Parts Destroyed . | . . . . . Critical Strikes . | . . . . . Melee Attacks . | . . . . . Impact . | . . . . . Slashing . | . . . . . Piercing . | . . . . . Sneak Attacks . | . . . . . Combat Hostiles . | . . . . . Follow-up Attacks . | . . . . . Damage Inflicted 2493 | 77 608 389 416 1003 Guns 2042 | 77 608 389 416 552 Cannons . | . . . . . Explosions 451 | . . . . 451 Melee . | . . . . . Ramming . | . . . . . Kinetic 695 | 77 608 10 . . Thermal 1386 | . . 379 416 591 Explosive . | . . . . . Electromagnetic 412 | . . . . 412 Impact . | . . . . . Slashing . | . . . . . Piercing . | . . . . . Highest Corruption . | . . . . . Average Corruption . | . . . . . Corruption Purged . | . . . . . Corruption Blocked . | . . . . . Overload Shots . | . . . . . Overflow Damage 11 | . . . . 11 Projectiles . | . . . . . Explosions 11 | . . . . 11 Melee . | . . . . . Knockbacks . | . . . . . Impact . | . . . . . Kinetic . | . . . . . Secondary . | . . . . . Self-Inflicted Damage 23 | . . . . 23 Shots 2 | . . . . 2 Rammed . | . . . . . Targets Rammed . | . . . . . Kicked . | . . . . . Crushed . | . . . . . Highest Temperature 705 | . . 246 595 705 Average Temperature 226 | . . 94 238 303 Received Heat Transfer 857 | . 174 63 99 521 Effects 35 | . . 3 8 24 Shutdowns 5 | . . . 1 4 Interference 7 | . . 3 3 1 Matter Decay 2 | . . . . 2 Short Circuit 5 | . . . 2 3 Damage (minor) 6 | . . . 2 4 Damage (major) 9 | . . . . 9 Damage (core) 1 | . . . . 1 Siege Activations . | . . . . . Robots Corrupted . | . . . . . Combat Hostiles . | . . . . . Parts Fried 2 | . . . . 2 Impact Corruptions . | . . . . . Robots Melted . | . . . . . Combat Hostiles . | . . . . . Parts Melted . | . . . . . Heat Transferred 2357 | . . 605 741 1011 Parts Sabotaged . | . . . . . Parts Stolen . | . . . . . Parts Stripped . | . . . . . Power Chain Reactions 1 | . . . . 1 Alert | -11 -10 -9 -8 -8 ------- Run | Yrd Mat Mat Mat Sto Peak Influence 295 | 15 249 271 295 208 Initial 120 | . 9 68 114 120 Average 147 | 3 147 155 174 154 Maximum Alert Level 1 | . 1 1 1 1 Low Security (%) 74 | 100 74 70 50 97 Level 1 25 | . 25 29 49 2 Level 2 . | . . . . . Level 3 . | . . . . . Level 4 . | . . . . . Level 5 . | . . . . . High Security . | . . . . . Max Security . | . . . . . Squads Dispatched 4 | . 2 . 2 . Investigation . | . . . . . Extermination . | . . . . . Reinforcement 2 | . 2 . . . Assault . | . . . . . Garrison 2 | . . . 2 . Intercept . | . . . . . Searches Triggered . | . . . . . Construction Impeded . | . . . . . Haulers Reinforced . | . . . . . Active Scanning Responses . | . . . . . Cargo Convoy Interrupts . | . . . . . Stealth | -11 -10 -9 -8 -8 --------- Run | Yrd Mat Mat Mat Sto Distress Signals 1 | . 1 . . . Communications Jammed . | . . . . . Distress Signals . | . . . . . Times Spotted 56 | . 21 8 9 18 Peak Tracking Total 8 | . 5 5 5 8 Tactical Retreats 1 | . 1 . . . Traps | -11 -10 -9 -8 -8 ------- Run | Yrd Mat Mat Mat Sto Traps Triggered 1 | . . . . 1 Indirectly . | . . . . . Trap Hack Attempts . | . . . . . Triggered . | . . . . . Disarmed . | . . . . . Reprogrammed . | . . . . . Reused . | . . . . . Traps Extracted . | . . . . . Installed . | . . . . . Triggered . | . . . . . Machines | -11 -10 -9 -8 -8 ---------- Run | Yrd Mat Mat Mat Sto Machines Disabled 1 | . . . . 1 Max in Single Turn 1 | . . . . 1 Machines Repaired . | . . . . . Machines Dismantled . | . . . . . Machines Sabotaged . | . . . . . Overloaded Fab Kills . | . . . . . Hacking | -11 -10 -9 -8 -8 --------- Run | Yrd Mat Mat Mat Sto Machines Accessed 3 | . 1 . 1 1 Terminals 3 | . 1 . 1 1 Fabricators . | . . . . . Repair Stations . | . . . . . Recycling Units . | . . . . . Scanalyzers . | . . . . . Garrison Access . | . . . . . Total Hacks 5 | . 2 . 2 1 Successful 4 | . 2 . 1 1 Failed 1 | . . . 1 . Catastrophic . | . . . . . Database Lockouts . | . . . . . Manual 4 | . 2 . 2 . Terminals 5 | . 2 . 2 1 Fabricators . | . . . . . Repair Stations . | . . . . . Recycling Units . | . . . . . Scanalyzers . | . . . . . Garrison Access . | . . . . . Terminal Hacks 1 | . . . . 1 Open Door 1 | . . . . 1 Fabricator Hacks . | . . . . . Repair Station Hacks . | . . . . . Recycling Unit Hacks . | . . . . . Scanalyzer . | . . . . . Garrison Access Hacks . | . . . . . Unauthorized Hacks 3 | . 2 . 1 . Terminals 3 | . 2 . 1 . Botnet 2 | . 1 . 1 . Operators 1 | . 1 . . . Fabricators . | . . . . . Repair Stations . | . . . . . Recycling Units . | . . . . . Scanalyzers . | . . . . . Garrison Access . | . . . . . Data Cores Recovered . | . . . . . Used . | . . . . . Hacking Detections 2 | . 1 . 1 . Full Trace Events . | . . . . . Feedback Events . | . . . . . Feedback Blocked . | . . . . . Robot Schematics Acquired . | . . . . . Robots Built . | . . . . . Authchips . | . . . . . Time . | . . . . . Total Robot Build Rating . | . . . . . Part Schematics Acquired . | . . . . . Parts Built . | . . . . . Authchips . | . . . . . Time . | . . . . . Total Part Build Rating . | . . . . . Parts Repaired . | . . . . . Time . | . . . . . Parts Recycled . | . . . . . Recycled Matter . | . . . . . Retrieved Matter . | . . . . . Retrieved Components . | . . . . . Parts Scanalyzed . | . . . . . Part Schematics Acquired . | . . . . . Parts Damaged . | . . . . . Bothacking | -11 -10 -9 -8 -8 ------------ Run | Yrd Mat Mat Mat Sto Used RIF Installer . | . . . . . Robots Hacked . | . . . . . Non-combat . | . . . . . Combat . | . . . . . Robot Hacks Applied . | . . . . . Relay Couplers Released . | . . . . . Fabnet Peak Effective % . | . . . . . Robots Rewired . | . . . . . Allies Hacked . | . . . . . Hacks Repelled . | . . . . . Allies | -11 -10 -9 -8 -8 -------- Run | Yrd Mat Mat Mat Sto Total Allies . | . . . . . Largest Group . | . . . . . Highest-Rated Group . | . . . . . Highest-Rated Ally . | . . . . . Total Orders . | . . . . . Ally Attacks . | . . . . . Total Damage . | . . . . . Kills . | . . . . . Allies Corrupted . | . . . . . Allies Melted . | . . . . . Intel | -11 -10 -9 -8 -8 ------- Run | Yrd Mat Mat Mat Sto Robot Analysis Total . | . . . . . Derelict Logs Recovered . | . . . . . Drone Launches . | . . . . . Drone Recoveries . | . . . . . Exploration | -11 -10 -9 -8 -8 ------------- Run | Yrd Mat Mat Mat Sto Turns Passed 1569 | 78 621 377 254 239 Spaces Moved 602 | 52 246 141 84 79 Core 32 | 4 . . . 28 Treads 7 | . . 5 1 1 Legs . | . . . . . Wheels 563 | 48 246 136 83 50 Hover . | . . . . . Flight . | . . . . . Fastest Speed 50 | 50 100 175 190 50 Average Speed 167 | 96 157 206 196 148 Slowest Speed 560 | 100 200 480 560 560 Overloaded Moves . | . . . . . Propulsion Burnouts . | . . . . . Robots Hopped . | . . . . . Cave-ins Triggered . | . . . . . Exploration Rate (%) 21 | 4 51 17 14 23 Regions Visited 4 Branch Regions 1 Pre-discovered Areas . | . . . . . Known Exits Taken . | . . . . . Unknown Exits Taken 4 | 1 1 1 1 . Scrap Searched . | . . . . . Spaces Dug . | . . . . . Terrain Destroyed 6 | . . . . 6 Melee . | . . . . . Projectile . | . . . . . AOE 6 | . . . . 6 Terrain Rammed . | . . . . . Walls Destroyed . | . . . . . Machines Disabled . | . . . . . Actions | -11 -10 -9 -8 -8 --------- Run | Yrd Mat Mat Mat Sto Total 974 | 70 396 192 154 162 Wait 210 | . 88 20 49 53 Move 598 | 51 245 140 83 79 Hop . | . . . . . Pick Up 23 | 6 1 11 5 . Fast Attach 15 | 6 1 3 1 4 Attach 10 | . 3 1 3 3 Detach . | . . . . . Swap 12 | . 4 2 2 4 Drop 4 | . . . 2 2 Fire 102 | 7 54 15 9 17 Melee . | . . . . . Ram . | . . . . . Kick . | . . . . . Crush . | . . . . . Escape Stasis . | . . . . . Rewire . | . . . . . Trap . | . . . . . Miscellaneous . | . . . . . Route ------- -11/Scrapyard -10/Materials -9/Materials -8/Materials -8/Storage History --------- Turn | Location | Event 10 | -11/Scrapyard | Discovered new exit (range 14) 79 | -11/Scrapyard | Entered Materials 317 | -10/Materials | Build established: Mutant 682 | -10/Materials | Discovered new exit (range 8) 700 | -10/Materials | Entered another Materials area 700 | -9/Materials | Evolved 2 slots: Weapon x2 1027 | -9/Materials | Discovered new exit (range 16) 1049 | -9/Materials | Build established: Gunner 1077 | -9/Materials | Entered another Materials area 1077 | -8/Materials | Evolved 2 slots: Utility x2 1172 | -8/Materials | Garrison activated, responded to threat 1306 | -8/Materials | Discovered new exit (range 8) 1310 | -8/Materials | Garrison activated, responded to threat 1331 | -8/Materials | Entered Storage 1373 | -8/Storage | Build established: Tank 1454 | -8/Storage | Lost 4 parts (1u3w) 1500 | -8/Storage | Assembled infested ambush trap array 1522 | -8/Storage | Released all parts (1) 1526 | -8/Storage | Core integrity fell below 50% 1552 | -8/Storage | Lost 9 parts (1p2n3u3w) 1569 | -8/Storage | Core integrity fell below 20% 1570 | -8/Storage | Destroyed by D-53 Grenadier with Mini Grenade Launcher Last Messages --------------- 01554_ G-47 Trooper destroyed. 01559_ Chain reaction triggered in Corrupted Imp. Ion Engine. 01561_ The unstable cave ceiling collapses. 01561_ Com. Wheel crushed. 01562_ Critical hit (Burn: +37). 01564_ Shock Bomb Launcher destroyed. 01567_ K-01 Serf collects debris. 01567_ Dropped Com. Battery. 01567_ G-50 Soldier misfires. 01568_ Extracted 96 energy. 01568_ Lgt. Nuclear Core fried. 01568_ Imp. Heat Sink fried. 01568_ G-47 Trooper destroyed. 01568_ Particle Gun destroyed. 01568_ Destroyed Particle Gun. 01568_ M-13 Machinist destroyed. 01569_ Shock Bomb Launcher destroyed. 01570_ K-01 Serf collects debris. 01570_ Lgt. Nuclear Core destroyed. Map ----- +----------------------------------------------------+ | ?????????????????????????????????????????? | | ?????????????????????????????????????????? | | ?????????????????????????????????????????? | | ?????????????????????????????????????????? | | ?????????????????????????????????????????? | | ?????????????????????????????????????????? | | ?????????????????????????????????????????? | | ???????????####???#+#????????????????????? | | ??????????? ?? ???????????????????? | | ?????????? ???????????????????? | | ??????????? "" ???????????????????? | | ????????????# Y" ???????????????????? | | ???????????##!!! "" ???????????????????? | | ???????????#"!!! r ???????????????????? | | ???????????#T!!! ?????#######???????? | | ???????????#" !/###### ! #???????? | | ????????????# !/ #???????? | | ????????????+ #???????? | | ????????????# % #???????? | | ????????????# # ##### #???????? | | ????????????## d %g ### ##???????? | | ?????????????# ==%! # # #????????? | | ???????????????? ; = #????????? | | ??????????????????# ! % d###??????? | | ??????????????????# ! #??????? | | ??????????????????# @ ###??????? | | ??????????????????# % ###?????? | | ??????????????????# #?????? | | ??????????????????# ##????? | | ??????????????????###### ### #????? | | ???????????????????# # # # #????? | | ???????????????????# k #????? | | ???????????????????# **# #####?? | | ???????????????????# !! !!!!#?? | | ???????????????????# #?? | | ???????????????????# !!!!#?? | | ???????????????????# ######?? | | ???????????????? "%+ ##??????? | | ??????????????? ### # ##???????? | | ???????????????????########## ########## | | ????????????????????????????# # # | | ????????????????????????????# # # | | ????????????????????????????# # # | | ????????????????????????????# # # | | ????????????????????????????# %+ # | | ????????????????????????????# # """" # | | ????????????????????????????# # """" # | | ????????????????????????????# # """" # | | ????????????????????????????# # """" # | | ????????????????????????????# ########?? | +----------------------------------------------------+ Best States ------------- Heat Dissipation 41 Energy Generation 14 Energy Capacity 265 Matter Stores 300 Matter Capacity 300 Sight Range 16 Terrain Scan Density 10 Armor Coverage 450 Evasion (%) 50 Recoil Reduction 1 Item Schematics ----------------- None Robot Schematics ------------------ None Fabricated ------------ Nothing Alien Tech Used ----------------- None Achievements -------------- None Challenges ------------ None Game ------ Seed SubdwellerTitaniumCharger Manual? 0 Play Time 00:14:37 Cumulative 26.3 hours Start 2024.05.06 @ 13:45:41 End 2024.05.06 @ 13:57:21 Sessions 1 Manual Loads 0 Difficulty Rogue Special Mode None Game No. 49 Rogue 49 Adventurer 0 Explorer 0 Win Type - Total 0 Types 0/0/0/0/0/0/0/0/0 Lore% 22 Gallery% 31 Achievement% 28 Wizard Run 0 Options --------- Layout 1 ASCII 0 Keyboard 0 Movement Vi Keybinds 0 Fullscreen 2 Font 24/Smallcaps Map View 50x35 Zoom Use 0% Tactical HUD 1 Map Filters NONE Filters NONE Steam 1 RUN: 8557bc93-39cc-4fd9-a205-ac3fc69e2dfe